fUSD/lending_fUSD_20250616
["ID","MTS","AMOUNT","RATE_DAILY","PERIOD"]
[366065844,1750045839460,-1571.61,0.00016438,2]
[366065845,1750045839488,-1563.94,0.00016438,2]
[366065847,1750045839498,-161.49366076,0.00016438,2]
[366065849,1750045839510,-523.76,0.00016438,2]
[366065851,1750045839520,-490.0,0.00016438,2]
[366065852,1750045839531,-591.75,0.00016438,2]
[366065853,1750045839541,-490.0,0.00016438,2]
[366065854,1750045839552,-961.98,0.00016438,2]
[366065855,1750045839562,-490.0,0.00016438,2]
[366065856,1750045839572,-490.0,0.00016438,2]
[366065857,1750045839582,-498.37894836,0.00016438,2]
[366065858,1750045839593,-490.0,0.00016438,2]
[366065859,1750045839603,-490.0,0.00016438,2]
[366065860,1750045839613,-488.5,0.00016438,2]
[366065861,1750045839623,-490.0,0.00016438,2]
[366065862,1750045839633,-2376.52,0.00016438,2]
[366065863,1750045839644,-490.0,0.00016438,2]
[366065864,1750045839654,-494.39857554,0.00016438,2]
[366065865,1750045839664,-490.0,0.00016438,2]
[366065866,1750045839675,-490.0,0.00016438,2]
[366065867,1750045839685,-490.0,0.00016438,2]
[366065868,1750045839696,-522.16,0.00016438,2]
[366065869,1750045839706,-576.52,0.00016438,2]
[366065870,1750045839716,-490.0,0.00016438,2]
[366065871,1750045839726,-490.0,0.00016438,2]
[366065872,1750045839737,-151.0,0.00016438,2]
[366065873,1750045839747,-151.0,0.00016438,2]
[366065874,1750045839756,-490.0,0.00016438,2]
[366065875,1750045839766,-491.01707738,0.00016438,2]
[366065876,1750045839776,-644.56,0.00016438,2]
[366065877,1750045839786,-905.51,0.00016438,2]
[366065878,1750045839796,-1039.98,0.00016438,2]
[366065879,1750045839807,-539.75,0.00016438,2]
[366065880,1750045839817,-490.0,0.00016438,2]
[366065881,1750045839827,-151.0,0.00016438,2]
[366065882,1750045839836,-151.0,0.00016438,2]
[366065883,1750045839847,-490.0,0.00016438,2]
[366065884,1750045839857,-1604.83,0.00016438,2]
[366065885,1750045839867,-485.5,0.00016438,2]
[366065886,1750045839876,-492.83176763,0.00016438,2]
[366065887,1750045839887,-490.0,0.00016438,2]
[366065888,1750045839900,-1449.727524,0.00016438,2]
[366065889,1750045839910,-492.00251383,0.00016438,2]
[366065890,1750045839920,-490.0,0.00016438,2]
[366065891,1750045839933,-1449.727524,0.00016438,2]
[366065892,1750045839943,-495.07710616,0.00016438,2]
[366065893,1750045839954,-723.43,0.00016438,2]
[366065894,1750045839964,-1726.85,0.00016438,2]
[366065895,1750045839974,-490.0,0.00016438,2]
[366065896,1750045839985,-654.8,0.00016438,2]
[366065897,1750045839994,-4729.31,0.00016438,2]
[366065898,1750045840004,-494.17231969,0.00016438,2]
[366065899,1750045840015,-1101.11,0.00016438,2]
[366065900,1750045840025,-1232.23,0.00016438,2]
[366065901,1750045840036,-307.17,0.00016438,2]
[366065902,1750045840049,-490.0,0.00016438,2]
[366065903,1750045840060,-323.47,0.00016438,2]
[366065904,1750045840071,-698.78,0.00016438,2]
[366065905,1750045840082,-1839.71,0.00016438,2]
[366065906,1750045840092,-1449.727524,0.00016438,2]
[366065907,1750045840102,-1449.727524,0.00016438,2]
[366065908,1750045840115,-490.0,0.00016438,2]
[366065909,1750045840127,-490.0,0.00016438,2]
[366065910,1750045840137,-490.0,0.00016438,2]
[366065911,1750045840147,-1557.18,0.00016438,2]
[366065912,1750045840159,-176.863456,0.00016438,2]
[366065913,1750045840171,-1523.74,0.00016438,2]
[366065914,1750045840182,-176.863456,0.00016438,2]
[366065915,1750045840193,-490.0,0.00016438,2]
[366065916,1750045840203,-739.3,0.00016438,2]
[366065917,1750045840213,-490.0,0.00016438,2]
[366065918,1750045840224,-1042.48,0.00016438,2]
[366065919,1750045840234,-706.23,0.00016438,2]
[366065920,1750045840244,-549.68,0.00016438,2]
[366065921,1750045840254,-176.863456,0.00016438,2]
[366065922,1750045840264,-495.1603586,0.00016438,2]
[366065924,1750045840276,-605.4,0.00016438,2]
[366065925,1750045840285,-176.863456,0.00016438,2]
[366065927,1750045840295,-5649.6,0.00016438,2]
[366065929,1750045840309,-2153.71,0.00016438,2]
[366065930,1750045840318,-490.0,0.00016438,2]
[366065931,1750045840328,-629.21,0.00016438,2]
[366065932,1750045840338,-669.5,0.00016438,2]
[366065933,1750045840350,-1147.05,0.00016438,2]
[366065934,1750045840360,-151.0,0.00016438,2]
[366065935,1750045840370,-544.3,0.00016438,2]
[366065936,1750045840380,-867.27,0.00016438,2]
[366065937,1750045840390,-2969.42,0.00016438,2]
[366065938,1750045840400,-548.16251062,0.00016438,2]
[366065939,1750045840410,-490.0,0.00016438,2]
[366065940,1750045840420,-873.96,0.00016438,2]
[366065941,1750045840433,-151.0,0.00016438,2]
[366065942,1750045840442,-623.42,0.00016438,2]
[366065943,1750045840454,-490.0,0.00016438,2]
[366065944,1750045840464,-490.0,0.00016438,2]
[366065945,1750045840474,-490.0,0.00016438,2]
[366065946,1750045840485,-490.0,0.00016438,2]
[366065947,1750045840496,-490.0,0.00016438,2]
[366065948,1750045840506,-490.0,0.00016438,2]
[366065949,1750045840516,-151.0,0.00016438,2]
[366065950,1750045840526,-151.0,0.00016438,2]
[366065951,1750045840536,-468.68321448,0.00016438,2]
[366065952,1750045840546,-1433.35,0.00016438,2]
[366065953,1750045840559,-499.54203924,0.00016438,2]
[366065954,1750045840569,-1511.2,0.00016438,2]
[366065955,1750045840579,-490.0,0.00016438,2]
[366065956,1750045840590,-490.0,0.00016438,2]
[366065957,1750045840600,-731.3,0.00016438,2]
[366065958,1750045840610,-1920.42,0.00016438,2]
[366065959,1750045840620,-3235.41,0.00016438,2]
[366065960,1750045840630,-490.0,0.00016438,2]
[366065961,1750045840640,-490.0,0.00016438,2]
[366065962,1750045840650,-492.70891831,0.00016438,2]
[366065963,1750045840660,-492.57,0.00016438,2]
[366065964,1750045840670,-490.0,0.00016438,2]
[366065965,1750045840681,-1880.56731632,0.00016438,2]
[366065966,1750045841420,-1104.21156385,0.00016438,2]
[366065967,1750045841432,-454.40958204,0.00016438,2]
[366065992,1750045842756,-1848.30153779,0.00016438,2]
[366065993,1750045842766,-490.0,0.00016438,2]
[366065994,1750045842775,-490.0,0.00016438,2]
[366065995,1750045842785,-493.34368227,0.00016438,2]
[366065996,1750045842795,-132.98524127,0.00016438,2]
[366065997,1750045842807,-357.01475873,0.00016438,2]
[366065998,1750045842818,-317.20056102,0.00016438,2]
[366065999,1750045842842,-172.79943898,0.00016438,2]
[366066000,1750045842851,-490.0,0.00016438,2]
[366066001,1750045842860,-640.66,0.00016438,2]
[366066002,1750045842870,-104.03781177,0.00016438,2]
[366066017,1750045843290,-385.96218823,0.00016438,2]
[366066018,1750045843300,-1140.6,0.00016438,2]
[366066019,1750045843309,-490.0,0.00016438,2]
[366066020,1750045843319,-490.0,0.00016438,2]
[366066021,1750045843328,-72.13644277,0.00016438,2]
[366066022,1750045843341,-1473.08355723,0.00016438,2]
[366066023,1750045843351,-763.5,0.00016438,2]
[366066024,1750045843361,-490.0,0.00016438,2]
[366066025,1750045843371,-411.74129481,0.00016438,2]
[366066026,1750045843381,-1968.99,0.00016438,2]
[366066027,1750045843392,-494.88662358,0.00016438,2]
[366066028,1750045843402,-801.48,0.00016438,2]
[366066029,1750045843412,-490.0,0.00016438,2]
[366066030,1750045843421,-490.0,0.00016438,2]
[366066031,1750045843431,-310.58384037,0.00016438,2]
[366066032,1750045843441,-490.0,0.00016438,2]
[366066033,1750045843451,-490.0,0.00016438,2]
[366066034,1750045843460,-685.55,0.00016438,2]
[366066035,1750045843470,-490.0,0.00016438,2]
[366066036,1750045843479,-490.0,0.00016438,2]
[366066037,1750045843489,-492.30277084,0.00016438,2]
[366066038,1750045843498,-490.0,0.00016438,2]
[366066039,1750045843508,-500.0,0.00016438,2]
[366066040,1750045843517,-500.0,0.00016438,2]
[366066041,1750045843527,-507.36516316,0.00016438,2]
[366066042,1750045843536,-2003.83,0.00016438,2]
[366066043,1750045843545,-495.34642172,0.00016438,2]
[366066044,1750045843555,-490.0,0.00016438,2]
[366066045,1750045843564,-490.0,0.00016438,2]
[366066046,1750045843575,-3803.36,0.00016438,2]
[366066047,1750045843585,-492.73802648,0.00016438,2]
[366066048,1750045843594,-493.78762477,0.00016438,2]
[366066049,1750045843604,-2374.6,0.00016438,2]
[366066050,1750045843613,-490.0,0.00016438,2]
[366066051,1750045843624,-490.0,0.00016438,2]
[366066052,1750045843634,-561.84,0.00016438,2]
[366066053,1750045843644,-1716.44,0.00016438,2]
[366066054,1750045843654,-490.0,0.00016438,2]
[366066055,1750045843663,-490.77245717,0.00016438,2]
[366066056,1750045843672,-1077.82,0.00016438,2]
[366066057,1750045843682,-490.0,0.00016438,2]
[366066058,1750045843692,-963.73,0.00016438,2]
[366066059,1750045843702,-153.533468,0.00016438,2]
[366066060,1750045843711,-491.73065795,0.00016438,2]
[366066061,1750045843721,-490.0,0.00016438,2]
[366066062,1750045843731,-2686.4,0.00016438,2]
[366066063,1750045843740,-490.0,0.00016438,2]
[366066064,1750045843750,-2350.31,0.00016438,2]
[366066065,1750045843759,-631.5,0.00016438,2]
[366066066,1750045843770,-495.40227159,0.00016438,2]
[366066067,1750045843781,-491.95029201,0.00016438,2]
[366066068,1750045843791,-2092.49,0.00016438,2]
[366066069,1750045843800,-151.0,0.00016438,2]
[366066070,1750045843810,-490.0,0.00016438,2]
[366066071,1750045843819,-151.0,0.00016438,2]
[366066072,1750045843829,-652.83,0.00016438,2]
[366066073,1750045843838,-220.569412,0.00016438,2]
[366066074,1750045843848,-220.569412,0.00016438,2]
[366066075,1750045843858,-4365.86,0.00016438,2]
[366066076,1750045843868,-3880.55,0.00016438,2]
[366066077,1750045843877,-1230.02,0.00016438,2]
[366066078,1750045843886,-177.381427,0.00016438,2]
[366066079,1750045843896,-177.381427,0.00016438,2]
[366066080,1750045843906,-151.0,0.00016438,2]
[366066081,1750045843916,-490.0,0.00016438,2]
[366066082,1750045843926,-177.381427,0.00016438,2]
[366066083,1750045843936,-151.0,0.00016438,2]
[366066084,1750045843947,-728.29,0.00016438,2]
[366066085,1750045843956,-494.94945705,0.00016438,2]
[366066086,1750045843967,-3539.85,0.00016438,2]
[366066087,1750045843977,-824.89,0.00016438,2]
[366066088,1750045843987,-490.0,0.00016438,2]
[366066089,1750045843998,-490.0,0.00016438,2]
[366066090,1750045844008,-220.569412,0.00016438,2]
[366066091,1750045844019,-495.3365194,0.00016438,2]
[366066092,1750045844033,-220.569412,0.00016438,2]
[366066093,1750045844043,-490.0,0.00016438,2]
[366066094,1750045844053,-177.381427,0.00016438,2]
[366066095,1750045844063,-177.381427,0.00016438,2]
[366066096,1750045844072,-494.61595101,0.00016438,2]
[366066097,1750045844083,-2645.29,0.00016438,2]
[366066098,1750045844092,-493.13939244,0.00016438,2]
[366066099,1750045844101,-177.381427,0.00016438,2]
[366066100,1750045844112,-2660.89,0.00016438,2]
[366066101,1750045844121,-2779.96,0.00016438,2]
[366066102,1750045844130,-2159.37,0.00016438,2]
[366066103,1750045844139,-495.31920549,0.00016438,2]
[366066104,1750045844148,-494.14761782,0.00016438,2]
[366066105,1750045844158,-490.0,0.00016438,2]
[366066106,1750045844169,-10257.87,0.00016438,2]
[366066107,1750045844178,-8019.0,0.00016438,2]
[366066108,1750045844188,-491.57658747,0.00016438,2]
[366066109,1750045844197,-748.85,0.00016438,2]
[366066110,1750045844206,-512.15,0.00016438,2]
[366066111,1750045844216,-490.0,0.00016438,2]
[366066112,1750045844225,-1436.54,0.00016438,2]
[366066113,1750045844235,-1374.71,0.00016438,2]
[366066114,1750045844244,-1864.46,0.00016438,2]
[366066115,1750045844253,-3068.09,0.00016438,2]
[366066116,1750045844263,-490.0,0.00016438,2]
[366066117,1750045844272,-1735.58,0.00016438,2]
[366066118,1750045844282,-490.0,0.00016438,2]
[366066119,1750045844291,-1731.94,0.00016438,2]
[366066120,1750045844300,-151.0,0.00016438,2]
[366066121,1750045844309,-581.5,0.00016438,2]
[366066122,1750045844318,-1433.35,0.00016438,2]
[366066123,1750045844329,-502.21,0.00016438,2]
[366066124,1750045844338,-507.3207303,0.00016438,2]
[366066125,1750045844347,-490.0,0.00016438,2]
[366066126,1750045844357,-1307.42,0.00016438,2]
[366066127,1750045844366,-746.65,0.00016438,2]
[366066128,1750045844375,-151.656887,0.00016438,2]
[366066129,1750045844384,-848.84,0.00016438,2]
[366066130,1750045844394,-2140.49,0.00016438,2]
[366066131,1750045844403,-495.01054497,0.00016438,2]
[366066132,1750045844414,-182.416962,0.00016438,2]
[366066133,1750045844423,-696.08,0.00016438,2]
[366066134,1750045844433,-5301.73,0.00016438,2]
[366066135,1750045844443,-2528.05,0.00016438,2]
[366066136,1750045844453,-509.8280757,0.00016438,2]
[366066137,1750045844463,-490.0,0.00016438,2]
[366066138,1750045844472,-962.55,0.00016438,2]
[366066139,1750045844482,-493.90084689,0.00016438,2]
[366066140,1750045844491,-403.51221179,0.00016438,2]
[366066141,1750045844500,-559.22061818,0.00016438,2]
[366066142,1750045844510,-490.0,0.00016438,2]
[366066143,1750045844519,-160.122081,0.00016438,2]
[366066144,1750045844529,-490.0,0.00016438,2]
[366066145,1750045844541,-4917.36,0.00016438,2]
[366066146,1750045844550,-490.95324714,0.00016438,2]
[366066147,1750045844559,-493.36340146,0.00016438,2]
[366066148,1750045844568,-663.67,0.00016438,2]
[366066149,1750045844578,-490.0,0.00016438,2]
[366066150,1750045844588,-504.50713082,0.00016438,2]
[366066151,1750045844598,-490.0,0.00016438,2]
[366066152,1750045844607,-2112.77,0.00016438,2]
[366066153,1750045844616,-3243.95,0.00016438,2]
[366066154,1750045844626,-275.95425094,0.00016438,2]
[366066155,1750045844636,-654.0,0.00016438,2]
[366066156,1750045844646,-490.0,0.00016438,2]
[366066157,1750045844655,-159.99973,0.00016438,2]
[366066158,1750045844665,-490.0,0.00016438,2]
[366066159,1750045844674,-490.0,0.00016438,2]
[366066160,1750045844683,-2780.92,0.00016438,2]
[366066161,1750045844693,-490.0,0.00016438,2]
[366066162,1750045844703,-499.52003681,0.00016438,2]
[366066163,1750045844712,-471.39306888,0.00016438,2]
[366066164,1750045844722,-192.78794492,0.00016438,2]
[366066165,1750045844731,-490.0,0.00016438,2]
[366066166,1750045844741,-490.0,0.00016438,2]
[366066167,1750045844750,-490.0,0.00016438,2]
[366066168,1750045844759,-490.0,0.00016438,2]
[366066169,1750045844769,-490.0,0.00016438,2]
[366066170,1750045844778,-490.0,0.00016438,2]
[366066171,1750045844787,-490.0,0.00016438,2]
[366066172,1750045844797,-4431.5,0.00016438,2]
[366066173,1750045844806,-1215.5,0.00016438,2]
[366066174,1750045844815,-508.1949713,0.00016438,2]
[366066175,1750045844824,-1633.86,0.00016438,2]
[366066176,1750045844833,-2044.36,0.00016438,2]
[366066177,1750045844842,-11796.17,0.00016438,2]
[366066178,1750045844852,-490.0,0.00016438,2]
[366066179,1750045844862,-492.95505936,0.00016438,2]
[366066180,1750045844871,-1718.48,0.00016438,2]
[366066181,1750045844880,-490.0,0.00016438,2]
[366066182,1750045845080,-490.0,0.00016438,2]
[366066183,1750045845090,-1979.07,0.00016438,2]
[366066184,1750045845100,-151.0,0.00016438,2]
[366066185,1750045845110,-206.536721,0.00016438,2]
[366066186,1750045845120,-495.45223218,0.00016438,2]
[366066187,1750045845129,-492.39604357,0.00016438,2]
[366066188,1750045845138,-668.92,0.00016438,2]
[366066189,1750045845147,-490.0,0.00016438,2]
[366066190,1750045845156,-1793.49,0.00016438,2]
[366066191,1750045845166,-490.0,0.00016438,2]
[366066192,1750045845175,-690.29,0.00016438,2]
[366066193,1750045845184,-1364.46,0.00016438,2]
[366066194,1750045845194,-1080.52,0.00016438,2]
[366066195,1750045845203,-491.24434573,0.00016438,2]
[366066196,1750045845212,-2318.36,0.00016438,2]
[366066197,1750045845221,-490.0,0.00016438,2]
[366066198,1750045845231,-8405.48,0.00016438,2]
[366066199,1750045845240,-490.0,0.00016438,2]
[366066200,1750045845249,-1030.279953,0.00016438,2]
[366066201,1750045845259,-494.39771913,0.00016438,2]
[366066202,1750045845268,-563.99,0.00016438,2]
[366066203,1750045845280,-710.9,0.00016438,2]
[366066204,1750045845289,-1030.279953,0.00016438,2]
[366066205,1750045845299,-1477.4,0.00016438,2]
[366066206,1750045845308,-466.07498801,0.00016438,2]
[366066207,1750045845318,-490.0,0.00016438,2]
[366066208,1750045845327,-490.0,0.00016438,2]
[366066209,1750045845337,-490.0,0.00016438,2]
[366066210,1750045845346,-490.0,0.00016438,2]
[366066211,1750045845355,-490.0,0.00016438,2]
[366066212,1750045845365,-1030.279953,0.00016438,2]
[366066213,1750045845375,-6086.37,0.00016438,2]
[366066215,1750045845384,-490.0,0.00016438,2]
[366066216,1750045845393,-1030.279953,0.00016438,2]
[366066218,1750045845403,-490.0,0.00016438,2]
[366066219,1750045845412,-490.0,0.00016438,2]
[366066220,1750045845422,-490.0,0.00016438,2]
[366066221,1750045845432,-492.60010863,0.00016438,2]
[366066222,1750045845441,-490.0,0.00016438,2]
[366066223,1750045845453,-536.2,0.00016438,2]
[366066224,1750045845462,-534.17,0.00016438,2]
[366066225,1750045845472,-493.60345217,0.00016438,2]
[366066226,1750045845482,-691.7,0.00016438,2]
[366066227,1750045845492,-534.17,0.00016438,2]
[366066228,1750045845502,-534.17,0.00016438,2]
[366066229,1750045845511,-2654.18,0.00016438,2]
[366066230,1750045845522,-534.17,0.00016438,2]
[366066231,1750045845531,-534.17,0.00016438,2]
[366066233,1750045845542,-1851.67,0.00016438,2]
[366066234,1750045845551,-490.0,0.00016438,2]
[366066235,1750045845561,-490.0,0.00016438,2]
[366066236,1750045845571,-490.0,0.00016438,2]
[366066237,1750045845580,-490.0,0.00016438,2]
[366066238,1750045845590,-490.0,0.00016438,2]
[366066239,1750045845599,-490.0,0.00016438,2]
[366066240,1750045845609,-397.81115585,0.00016438,2]
[366066241,1750045845619,-1130.27,0.00016438,2]
[366066242,1750045845628,-367.42976773,0.00016438,2]
[366066243,1750045845639,-1215.17,0.00016438,2]
[366066244,1750045845649,-1458.71121,0.00016438,2]
[366066245,1750045845659,-490.0,0.00016438,2]
[366066246,1750045845668,-3121.5,0.00016438,2]
[366066247,1750045845678,-490.0,0.00016438,2]
[366066248,1750045845688,-1458.71121,0.00016438,2]
[366066249,1750045845699,-158.41159934,0.00016438,2]
[366066250,1750045845708,-705.55,0.00016438,2]
[366066251,1750045845718,-690.1,0.00016438,2]
[366066252,1750045845728,-500.0,0.00016438,2]
[366066253,1750045845737,-5622.86,0.00016438,2]
[366066254,1750045845747,-500.0,0.00016438,2]
[366066255,1750045845759,-12298.08,0.00016438,2]
[366066256,1750045845770,-500.0,0.00016438,2]
[366066257,1750045845781,-492.16599123,0.00016438,2]
[366066258,1750045845792,-490.0,0.00016438,2]
[366066259,1750045845802,-500.0,0.00016438,2]
[366066260,1750045845811,-500.0,0.00016438,2]
[366066261,1750045845822,-1503.66,0.00016438,2]
[366066262,1750045845833,-553.89259933,0.00016438,2]
[366066263,1750045845843,-491.76079103,0.00016438,2]
[366066264,1750045845854,-490.0,0.00016438,2]
[366066265,1750045845864,-490.0,0.00016438,2]
[366066266,1750045845875,-491.96164906,0.00016438,2]
[366066267,1750045845885,-490.0,0.00016438,2]
[366066268,1750045845895,-490.0,0.00016438,2]
[366066269,1750045845905,-1286.5,0.00016438,2]
[366066270,1750045845914,-712.47,0.00016438,2]
[366066271,1750045845924,-1875.34,0.00016438,2]
[366066272,1750045845937,-490.0,0.00016438,2]
[366066273,1750045845950,-2711.45,0.00016438,2]
[366066274,1750045845961,-490.0,0.00016438,2]
[366066275,1750045845972,-490.0,0.00016438,2]
[366066276,1750045845984,-490.0,0.00016438,2]
[366066277,1750045845995,-817.79,0.00016438,2]
[366066278,1750045846005,-1458.71121,0.00016438,2]
[366066279,1750045846017,-1458.71121,0.00016438,2]
[366066280,1750045846028,-493.11991115,0.00016438,2]
[366066281,1750045846038,-500.0,0.00016438,2]
[366066282,1750045846049,-490.0,0.00016438,2]
[366066283,1750045846059,-490.0,0.00016438,2]
[366066284,1750045846068,-500.0,0.00016438,2]
[366066285,1750045846077,-500.0,0.00016438,2]
[366066286,1750045846087,-490.0,0.00016438,2]
[366066287,1750045846097,-500.0,0.00016438,2]
[366066288,1750045846107,-500.0,0.00016438,2]
[366066289,1750045846117,-828.06,0.00016438,2]
[366066290,1750045846126,-1450.17,0.00016438,2]
[366066291,1750045846136,-650.1,0.00016438,2]
[366066293,1750045846145,-574.41,0.00016438,2]
[366066295,1750045846155,-490.0,0.00016438,2]
[366066297,1750045846164,-490.0,0.00016438,2]
[366066299,1750045846174,-490.0,0.00016438,2]
[366066301,1750045846184,-490.0,0.00016438,2]
[366066303,1750045846194,-1971.04,0.00016438,2]
[366066305,1750045846203,-286.847384,0.00016438,2]
[366066307,1750045846213,-490.0,0.00016438,2]
[366066309,1750045846223,-286.847384,0.00016438,2]
[366066311,1750045846232,-513.33,0.00016438,2]
[366066313,1750045846242,-842.55,0.00016438,2]
[366066316,1750045846253,-959.04,0.00016438,2]
[366066317,1750045846262,-422.05225712,0.00016438,2]
[366066319,1750045846272,-490.0,0.00016438,2]
[366066321,1750045846281,-490.0,0.00016438,2]
[366066323,1750045846291,-530.50467146,0.00016438,2]
[366066325,1750045846301,-2154.12,0.00016438,2]
[366066327,1750045846311,-490.0,0.00016438,2]
[366066329,1750045846320,-490.0,0.00016438,2]
[366066332,1750045846331,-490.0,0.00016438,2]
[366066334,1750045846341,-286.847384,0.00016438,2]
[366066336,1750045846350,-286.847384,0.00016438,2]
[366066338,1750045846360,-503.78278697,0.00016438,2]
[366066340,1750045846370,-1631.73,0.00016438,2]
[366066342,1750045846381,-491.99752988,0.00016438,2]
[366066344,1750045846391,-6590.69,0.00016438,2]
[366066346,1750045846400,-2096.32,0.00016438,2]
[366066348,1750045846410,-496.48919933,0.00016438,2]
[366066350,1750045846420,-1740.35,0.00016438,2]
[366066352,1750045846430,-503.79411564,0.00016438,2]
[366066354,1750045846440,-490.0,0.00016438,2]
[366066356,1750045846450,-495.97213732,0.00016438,2]
[366066358,1750045846460,-26844.97,0.00016438,2]
[366066360,1750045846470,-936.59,0.00016438,2]
[366066361,1750045846479,-513.07576529,0.00016438,2]
[366066363,1750045846489,-427.8416371,0.00016438,2]
[366066366,1750045846499,-588.58,0.00016438,2]
[366066367,1750045846509,-495.14018756,0.00016438,2]
[366066369,1750045846519,-492.06929683,0.00016438,2]
[366066371,1750045846529,-499.03835969,0.00016438,2]
[366066373,1750045846539,-490.0,0.00016438,2]
[366066375,1750045846549,-499.48824707,0.00016438,2]
[366066377,1750045846559,-1198.41,0.00016438,2]
[366066379,1750045846568,-3382.57,0.00016438,2]
[366066380,1750045846578,-495.10443526,0.00016438,2]
[366066382,1750045846589,-490.0,0.00016438,2]
[366066384,1750045846598,-490.0,0.00016438,2]
[366066386,1750045846608,-490.0,0.00016438,2]
[366066388,1750045846618,-572.49,0.00016438,2]
[366066390,1750045846628,-2184.61,0.00016438,2]
[366066392,1750045846639,-490.0,0.00016438,2]
[366066394,1750045846649,-958.2,0.00016438,2]
[366066396,1750045846659,-490.0,0.00016438,2]
[366066398,1750045846670,-492.28654871,0.00016438,2]
[366066400,1750045846679,-490.0,0.00016438,2]
[366066402,1750045846689,-490.0,0.00016438,2]
[366066404,1750045846700,-2621.51,0.00016438,2]
[366066406,1750045846710,-493.49968535,0.00016438,2]
[366066408,1750045846720,-595.21713206,0.00016438,2]
[366066410,1750045846731,-490.0,0.00016438,2]
[366066412,1750045846741,-3769.93,0.00016438,2]
[366066414,1750045846750,-2160.69,0.00016438,2]
[366066416,1750045846760,-2932.16,0.00016438,2]
[366066418,1750045846770,-1327.54,0.00016438,2]
[366066420,1750045846779,-490.0,0.00016438,2]
[366066422,1750045846789,-1498.06,0.00016438,2]
[366066424,1750045846799,-761.2,0.00016438,2]
[366066426,1750045846809,-490.0,0.00016438,2]
[366066428,1750045846819,-483.2988675,0.00016438,2]
[366066430,1750045846829,-8022.28,0.00016438,2]
[366066432,1750045846839,-1015.34,0.00016438,2]
[366066434,1750045846849,-383.1466226,0.00016438,2]
[366066436,1750045846859,-490.0,0.00016438,2]
[366066438,1750045846869,-490.0,0.00016438,2]
[366066440,1750045846878,-490.0,0.00016438,2]
[366066442,1750045846888,-4518.67,0.00016438,2]
[366066444,1750045846898,-1976.38,0.00016438,2]
[366066446,1750045846908,-490.0,0.00016438,2]
[366066449,1750045846919,-315.62313998,0.00016438,2]
[366066451,1750045846928,-1477.2,0.00016438,2]
[366066452,1750045846941,-1096.28,0.00016438,2]
[366066454,1750045846952,-267.90523209,0.00016438,2]
[366066457,1750045846962,-322.96015572,0.00016438,2]
[366066459,1750045846972,-550.21,0.00016438,2]
[366066461,1750045846983,-490.0,0.00016438,2]
[366066463,1750045846993,-494.35591029,0.00016438,2]
[366066465,1750045847003,-490.0,0.00016438,2]
[366066466,1750045847012,-153.54236,0.00016438,2]
[366066467,1750045847022,-23130.27,0.00016438,2]
[366066468,1750045847032,-1242.28,0.00016438,2]
[366066469,1750045847042,-2642.8,0.00016438,2]
[366066470,1750045847051,-490.0,0.00016438,2]
[366066471,1750045847060,-1274.32,0.00016438,2]
[366066472,1750045847070,-490.0,0.00016438,2]
[366066473,1750045847079,-490.0,0.00016438,2]
[366066474,1750045847088,-490.0,0.00016438,2]
[366066475,1750045847098,-1915.31,0.00016438,2]
[366066476,1750045847107,-2317.18,0.00016438,2]
[366066477,1750045847117,-1029.2,0.00016438,2]